[Event "Early-Titled-Tuesday-Blitz-March-19-2024"]
[Site "Chess.com"]
[Date "2024.03.19"]
[Round "1"]
[White "ploxoi"]
[Black "ChessQueen"]
[Result "1/2-1/2"]
[WhiteElo "2422"]
[BlackElo "2749"]
[TimeControl "180+1"]
[EndTime "8:09:00 PDT"]
[Termination "Game drawn by repetition"]

1. d4 {[%clk 0:02:57.3]} 1... f5 {[%clk 0:02:59.6]} 2. Nf3 {[%clk 0:02:57]} 2...
Nf6 {[%clk 0:02:58.5]} 3. g3 {[%clk 0:02:57.6]} 3... g6 {[%clk 0:02:58.9]} 4.
Bg2 {[%clk 0:02:58.1]} 4... Bg7 {[%clk 0:02:59.4]} 5. O-O {[%clk 0:02:58.6]}
5... O-O {[%clk 0:02:59.7]} 6. b3 {[%clk 0:02:59.3]} 6... a5 {[%clk 0:02:58.9]}
7. c4 {[%clk 0:02:52.2]} 7... d6 {[%clk 0:02:58.1]} 8. Bb2 {[%clk 0:02:49.8]}
8... a4 {[%clk 0:02:56.9]} 9. Qc1 {[%clk 0:02:47.4]} 9... c6 {[%clk 0:02:50.4]}
10. Nc3 {[%clk 0:02:42]} 10... axb3 {[%clk 0:02:50.2]} 11. axb3 {[%clk
0:02:41.9]} 11... Rxa1 {[%clk 0:02:48.7]} 12. Qxa1 {[%clk 0:02:41.9]} 12... Qb6
{[%clk 0:02:48.2]} 13. Qa3 {[%clk 0:02:26]} 13... Na6 {[%clk 0:02:45]} 14. Na4
{[%clk 0:02:20.5]} 14... Qd8 {[%clk 0:02:35.3]} 15. Rd1 {[%clk 0:02:19.5]} 15...
Ne4 {[%clk 0:02:34.2]} 16. Nc3 {[%clk 0:02:14]} 16... Nxc3 {[%clk 0:02:27.7]}
17. Bxc3 {[%clk 0:02:14.9]} 17... f4 {[%clk 0:02:28]} 18. b4 {[%clk 0:01:48.5]}
18... h6 {[%clk 0:02:07.5]} 19. d5 {[%clk 0:01:09.2]} 19... cxd5 {[%clk
0:01:48.6]} 20. cxd5 {[%clk 0:01:05]} 20... fxg3 {[%clk 0:01:41.7]} 21. hxg3
{[%clk 0:00:58.6]} 21... Bg4 {[%clk 0:01:18.6]} 22. Bxg7 {[%clk 0:00:45.9]}
22... Kxg7 {[%clk 0:01:19.5]} 23. Qc3+ {[%clk 0:00:45.8]} 23... Kh7 {[%clk
0:01:19.4]} 24. Qd4 {[%clk 0:00:46]} 24... Bxf3 {[%clk 0:01:11.6]} 25. Bxf3
{[%clk 0:00:46.9]} 25... Qc8 {[%clk 0:01:10.6]} 26. Kg2 {[%clk 0:00:46.8]} 26...
Qc2 {[%clk 0:01:07]} 27. Rh1 {[%clk 0:00:44]} 27... Rf7 {[%clk 0:00:37.1]} 28.
Qe3 {[%clk 0:00:37.6]} 28... h5 {[%clk 0:00:36.9]} 29. Rxh5+ {[%clk 0:00:25.1]}
29... Kg8 {[%clk 0:00:36.1]} 30. Be4 {[%clk 0:00:20.7]} 30... Qxe4+ {[%clk
0:00:26]} 31. Qxe4 {[%clk 0:00:21.6]} 31... gxh5 {[%clk 0:00:26.8]} 32. Qg6+
{[%clk 0:00:19.2]} 32... Rg7 {[%clk 0:00:27.1]} 33. Qxh5 {[%clk 0:00:15.3]}
33... Nxb4 {[%clk 0:00:27.2]} 34. Qe8+ {[%clk 0:00:16]} 34... Kh7 {[%clk
0:00:27.6]} 35. Qb5 {[%clk 0:00:16.9]} 35... Na6 {[%clk 0:00:26.5]} 36. Qxb7
{[%clk 0:00:16.9]} 36... Nc5 {[%clk 0:00:27.4]} 37. Qc8 {[%clk 0:00:16.5]} 37...
Rf7 {[%clk 0:00:26.8]} 38. e3 {[%clk 0:00:16.5]} 38... Kg7 {[%clk 0:00:23.1]}
39. Qg4+ {[%clk 0:00:16.9]} 39... Kf8 {[%clk 0:00:23]} 40. Qh5 {[%clk
0:00:16.7]} 40... Kg7 {[%clk 0:00:21.1]} 41. Qg5+ {[%clk 0:00:16.9]} 41... Kh7
{[%clk 0:00:18.8]} 42. g4 {[%clk 0:00:16.5]} 42... Rxf2+ {[%clk 0:00:17.7]} 43.
Kg1 {[%clk 0:00:14.9]} 43... Rf7 {[%clk 0:00:17]} 44. Qh5+ {[%clk 0:00:15.4]}
44... Kg8 {[%clk 0:00:16.7]} 45. g5 {[%clk 0:00:16.3]} 45... Rg7 {[%clk
0:00:16.6]} 46. Qe8+ {[%clk 0:00:15.4]} 46... Kh7 {[%clk 0:00:16.7]} 47. Qh5+
{[%clk 0:00:15.4]} 47... Kg8 {[%clk 0:00:17.2]} 48. Kh2 {[%clk 0:00:14.5]} 48...
Ne4 {[%clk 0:00:16.2]} 49. Qe8+ {[%clk 0:00:13.8]} 49... Kh7 {[%clk 0:00:16.8]}
50. g6+ {[%clk 0:00:14.4]} 50... Kh6 {[%clk 0:00:12.5]} 51. Kh3 {[%clk
0:00:09.4]} 51... Nf6 {[%clk 0:00:11.3]} 52. Qf8 {[%clk 0:00:08.8]} 52... Kxg6
{[%clk 0:00:11.4]} 53. e4 {[%clk 0:00:08.8]} 53... Nxe4 {[%clk 0:00:09.8]} 54.
Qf4 {[%clk 0:00:08.7]} 54... Nf6 {[%clk 0:00:09.9]} 55. Kh4 {[%clk 0:00:08.3]}
55... Rh7+ {[%clk 0:00:09.8]} 56. Kg3 {[%clk 0:00:07.4]} 56... Kh5 {[%clk
0:00:10.1]} 57. Qf5+ {[%clk 0:00:07.1]} 57... Kh6 {[%clk 0:00:10.3]} 58. Kf4
{[%clk 0:00:07.7]} 58... Kg7 {[%clk 0:00:09.8]} 59. Qe6 {[%clk 0:00:07.7]} 59...
Rh4+ {[%clk 0:00:09.4]} 60. Kg5 {[%clk 0:00:07.4]} 60... Rg4+ {[%clk 0:00:09.8]}
61. Kf5 {[%clk 0:00:07.9]} 61... Re4 {[%clk 0:00:10.4]} 62. Qc8 {[%clk
0:00:06.5]} 62... Re5+ {[%clk 0:00:10.3]} 63. Kf4 {[%clk 0:00:06.3]} 63... Nxd5+
{[%clk 0:00:10.8]} 64. Kf3 {[%clk 0:00:06.9]} 64... Nf6 {[%clk 0:00:10.7]} 65.
Qh3 {[%clk 0:00:06.9]} 65... Kf7 {[%clk 0:00:10.6]} 66. Qh4 {[%clk 0:00:06.2]}
66... Ke6 {[%clk 0:00:08.9]} 67. Qc4+ {[%clk 0:00:06.5]} 67... d5 {[%clk
0:00:08.7]} 68. Qc6+ {[%clk 0:00:06.6]} 68... Kf7 {[%clk 0:00:09]} 69. Kf4
{[%clk 0:00:07.1]} 69... Re4+ {[%clk 0:00:08.6]} 70. Kf3 {[%clk 0:00:07.7]}
70... Re6 {[%clk 0:00:08.6]} 71. Qc5 {[%clk 0:00:06.9]} 71... Rd6 {[%clk
0:00:09]} 72. Qd4 {[%clk 0:00:06.8]} 72... Nd7 {[%clk 0:00:08]} 73. Qg4 {[%clk
0:00:03.9]} 73... Nf6 {[%clk 0:00:06.6]} 74. Qd4 {[%clk 0:00:03.6]} 74... Ne4
{[%clk 0:00:07.1]} 75. Kf4 {[%clk 0:00:03]} 75... Nf6 {[%clk 0:00:06.9]} 76. Kf3
{[%clk 0:00:02.8]} 1/2-1/2

[Event "Early-Titled-Tuesday-Blitz-March-19-2024"]
[Site "Chess.com"]
[Date "2024.03.19"]
[Round "1"]
[White "tusplingher"]
[Black "MyDream003"]
[Result "1-0"]
[WhiteElo "2460"]
[BlackElo "2792"]
[TimeControl "180+1"]
[EndTime "8:09:46 PDT"]
[Termination "tusplingher won on time"]

1. e4 {[%clk 0:02:59.8]} 1... c6 {[%clk 0:02:58.8]} 2. Nf3 {[%clk 0:02:59.1]}
2... d5 {[%clk 0:02:55.8]} 3. exd5 {[%clk 0:02:59]} 3... cxd5 {[%clk 0:02:55.2]}
4. Ne5 {[%clk 0:02:59.6]} 4... Nc6 {[%clk 0:02:50.9]} 5. d4 {[%clk 0:02:58.6]}
5... Nf6 {[%clk 0:02:46.5]} 6. Bb5 {[%clk 0:02:52.5]} 6... Bd7 {[%clk
0:02:44.4]} 7. Nxd7 {[%clk 0:02:50.3]} 7... Qxd7 {[%clk 0:02:43.1]} 8. c3 {[%clk
0:02:49.9]} 8... e6 {[%clk 0:02:43.3]} 9. O-O {[%clk 0:02:48.4]} 9... Bd6 {[%clk
0:02:43.4]} 10. Nd2 {[%clk 0:02:47]} 10... O-O {[%clk 0:02:41.4]} 11. Bd3 {[%clk
0:02:41.6]} 11... Rab8 {[%clk 0:02:36.3]} 12. Qe2 {[%clk 0:02:39.5]} 12... a6
{[%clk 0:02:29.2]} 13. Nf3 {[%clk 0:02:38.9]} 13... Qc7 {[%clk 0:02:18.7]} 14.
Re1 {[%clk 0:02:28.1]} 14... Nd7 {[%clk 0:02:02]} 15. Ng5 {[%clk 0:01:49.1]}
15... Nf6 {[%clk 0:01:48.6]} 16. Nf3 {[%clk 0:01:37.8]} 16... Bf4 {[%clk
0:01:39.9]} 17. Ne5 {[%clk 0:01:29.1]} 17... Bxc1 {[%clk 0:01:38.5]} 18. Raxc1
{[%clk 0:01:27.2]} 18... Nxe5 {[%clk 0:01:38.7]} 19. dxe5 {[%clk 0:01:25]} 19...
Nd7 {[%clk 0:01:38.3]} 20. c4 {[%clk 0:01:07.9]} 20... dxc4 {[%clk 0:01:09.3]}
21. Rxc4 {[%clk 0:01:06.9]} 21... Qa5 {[%clk 0:01:09.5]} 22. b4 {[%clk
0:00:59.6]} 22... Qa3 {[%clk 0:01:09.1]} 23. Bxh7+ {[%clk 0:00:52.1]} 23... Kxh7
{[%clk 0:01:09]} 24. Rh4+ {[%clk 0:00:49.2]} 24... Kg8 {[%clk 0:01:09]} 25. Qh5
{[%clk 0:00:47.6]} 25... f5 {[%clk 0:01:05.4]} 26. Qh7+ {[%clk 0:00:37.6]} 26...
Kf7 {[%clk 0:01:05.4]} 27. Qh5+ {[%clk 0:00:35.8]} 27... Ke7 {[%clk 0:00:41.1]}
28. Qg5+ {[%clk 0:00:36.2]} 28... Kf7 {[%clk 0:00:32.8]} 29. Qh5+ {[%clk
0:00:34.3]} 29... Ke7 {[%clk 0:00:30]} 30. Qg5+ {[%clk 0:00:34.3]} 30... Ke8
{[%clk 0:00:20.8]} 31. Qg6+ {[%clk 0:00:34.6]} 31... Kd8 {[%clk 0:00:21.2]} 32.
Qxe6 {[%clk 0:00:33.7]} 32... Re8 {[%clk 0:00:21.2]} 33. Qd6 {[%clk 0:00:30.9]}
33... Qc3 {[%clk 0:00:12.5]} 34. Rd1 {[%clk 0:00:29.5]} 34... Qc6 {[%clk
0:00:10.3]} 35. e6 {[%clk 0:00:21.9]} 35... Qxd6 {[%clk 0:00:05.7]} 36. Rxd6
{[%clk 0:00:21.3]} 36... Ke7 {[%clk 0:00:05.8]} 37. Rxd7+ {[%clk 0:00:21.1]}
37... Kxe6 {[%clk 0:00:06.5]} 38. Rhd4 {[%clk 0:00:13.3]} 38... Kf6 {[%clk
0:00:06.7]} 39. f4 {[%clk 0:00:11.8]} 39... Re6 {[%clk 0:00:05.5]} 40. R4d6
{[%clk 0:00:09.8]} 40... Rc8 {[%clk 0:00:03.6]} 41. Rxe6+ {[%clk 0:00:09.5]}
41... Kxe6 {[%clk 0:00:04.5]} 42. Rxb7 {[%clk 0:00:08.9]} 42... Rc1+ {[%clk
0:00:03.2]} 43. Kf2 {[%clk 0:00:08.8]} 43... Rc2+ {[%clk 0:00:04.1]} 44. Kg3
{[%clk 0:00:09.3]} 44... Rxa2 {[%clk 0:00:04.1]} 45. Rxg7 {[%clk 0:00:09.2]}
45... Kf6 {[%clk 0:00:05]} 46. Ra7 {[%clk 0:00:09.2]} 46... Ra3+ {[%clk
0:00:05.4]} 47. Kh4 {[%clk 0:00:09.2]} 47... Ra2 {[%clk 0:00:06.1]} 48. Kh3
{[%clk 0:00:09.7]} 48... Kg6 {[%clk 0:00:04.8]} 49. b5 {[%clk 0:00:09.4]} 49...
a5 {[%clk 0:00:04.6]} 50. b6 {[%clk 0:00:09.8]} 50... a4 {[%clk 0:00:04.8]} 51.
b7 {[%clk 0:00:10.3]} 51... Rb2 {[%clk 0:00:05.5]} 52. Ra6+ {[%clk 0:00:10.2]}
52... Kh5 {[%clk 0:00:05.4]} 53. Rxa4 {[%clk 0:00:07.8]} 53... Rxb7 {[%clk
0:00:05.7]} 54. Ra5 {[%clk 0:00:07.7]} 54... Kg6 {[%clk 0:00:04.9]} 55. Kg3
{[%clk 0:00:07.5]} 55... Rb3+ {[%clk 0:00:05.2]} 56. Kh4 {[%clk 0:00:07.7]}
56... Rb2 {[%clk 0:00:05.9]} 57. Ra6+ {[%clk 0:00:07.2]} 57... Kg7 {[%clk
0:00:05.1]} 58. Kh3 {[%clk 0:00:06.6]} 58... Rb3+ {[%clk 0:00:04.7]} 59. g3
{[%clk 0:00:07.1]} 59... Rb2 {[%clk 0:00:04.8]} 60. Rd6 {[%clk 0:00:06.4]} 60...
Kf7 {[%clk 0:00:05.2]} 61. Kh4 {[%clk 0:00:05.5]} 61... Rxh2+ {[%clk 0:00:04.7]}
62. Kg5 {[%clk 0:00:06.1]} 62... Rg2 {[%clk 0:00:05.1]} 63. Rd3 {[%clk
0:00:05.7]} 63... Ke6 {[%clk 0:00:05.1]} 64. Re3+ {[%clk 0:00:06.1]} 64... Kf7
{[%clk 0:00:04.9]} 65. Kxf5 {[%clk 0:00:06.7]} 65... Ra2 {[%clk 0:00:05.6]} 66.
g4 {[%clk 0:00:07.1]} 66... Ra5+ {[%clk 0:00:06.3]} 67. Re5 {[%clk 0:00:07.8]}
67... Ra6 {[%clk 0:00:06.7]} 68. g5 {[%clk 0:00:06.7]} 68... Rb6 {[%clk
0:00:07.3]} 69. Rd5 {[%clk 0:00:07.1]} 69... Ra6 {[%clk 0:00:07.4]} 70. Rd7+
{[%clk 0:00:05.6]} 70... Kg8 {[%clk 0:00:07.7]} 71. Rb7 {[%clk 0:00:06]} 71...
Rc6 {[%clk 0:00:07.5]} 72. Kg4 {[%clk 0:00:06.1]} 72... Rc4 {[%clk 0:00:07.4]}
73. Kh5 {[%clk 0:00:06.5]} 73... Rxf4 {[%clk 0:00:06.9]} 74. Kh6 {[%clk
0:00:05.5]} 74... Kf8 {[%clk 0:00:02.9]} 75. Rb8+ {[%clk 0:00:03.1]} 75... Ke7
{[%clk 0:00:03]} 76. g6 {[%clk 0:00:03.4]} 76... Rh4+ {[%clk 0:00:03.3]} 77. Kg7
{[%clk 0:00:02.5]} 77... Rh1 {[%clk 0:00:03.2]} 78. Rb2 {[%clk 0:00:02.5]} 78...
Re1 {[%clk 0:00:02.6]} 79. Rf2 {[%clk 0:00:02.4]} 79... Rg1 {[%clk 0:00:02.8]}
80. Re2+ {[%clk 0:00:02.5]} 80... Kd6 {[%clk 0:00:03.5]} 81. Kf7 {[%clk
0:00:03.1]} 81... Rf1+ {[%clk 0:00:03.9]} 82. Kg8 {[%clk 0:00:03.6]} 82... Rg1
{[%clk 0:00:04.5]} 83. g7 {[%clk 0:00:04.2]} 83... Kd7 {[%clk 0:00:05.2]} 84.
Re4 {[%clk 0:00:04.4]} 84... Rg5 {[%clk 0:00:04.9]} 85. Kf7 {[%clk 0:00:04.3]}
85... Rf5+ {[%clk 0:00:03.9]} 86. Kg6 {[%clk 0:00:04.6]} 86... Rf1 {[%clk
0:00:04.2]} 87. g8=Q {[%clk 0:00:05.1]} 87... Rg1+ {[%clk 0:00:04.8]} 88. Kh7
{[%clk 0:00:04.8]} 88... Rxg8 {[%clk 0:00:05.7]} 89. Kxg8 {[%clk 0:00:05.3]}
89... Kd6 {[%clk 0:00:06.6]} 90. Kf7 {[%clk 0:00:06]} 90... Kd5 {[%clk
0:00:07.5]} 91. Re6 {[%clk 0:00:06.6]} 91... Kd4 {[%clk 0:00:07.9]} 92. Kf6
{[%clk 0:00:07.2]} 1-0

[Event "Early-Titled-Tuesday-Blitz-March-19-2024"]
[Site "Chess.com"]
[Date "2024.03.19"]
[Round "1"]
[White "rubicapa"]
[Black "Elegance_Riks"]
[Result "0-1"]
[WhiteElo "2417"]
[BlackElo "2765"]
[TimeControl "180+1"]
[EndTime "8:10:34 PDT"]
[Termination "Elegance_Riks won on time"]

1. e4 {[%clk 0:02:58.3]} 1... g6 {[%clk 0:02:58.6]} 2. d4 {[%clk 0:02:56.5]}
2... Bg7 {[%clk 0:02:59]} 3. Nc3 {[%clk 0:02:57.2]} 3... d6 {[%clk 0:02:59.5]}
4. Nf3 {[%clk 0:02:57.1]} 4... a6 {[%clk 0:02:59.9]} 5. Bc4 {[%clk 0:02:57.5]}
5... e6 {[%clk 0:02:57.8]} 6. a4 {[%clk 0:02:54.6]} 6... Ne7 {[%clk 0:02:56.9]}
7. O-O {[%clk 0:02:54.5]} 7... h6 {[%clk 0:02:56.9]} 8. Re1 {[%clk 0:02:54.3]}
8... b6 {[%clk 0:02:57.3]} 9. e5 {[%clk 0:02:45]} 9... d5 {[%clk 0:02:57]} 10.
Bd3 {[%clk 0:02:44.5]} 10... c5 {[%clk 0:02:55.7]} 11. Bf1 {[%clk 0:02:33.9]}
11... Nd7 {[%clk 0:02:44.8]} 12. Ne2 {[%clk 0:02:32.6]} 12... O-O {[%clk
0:02:41.9]} 13. c3 {[%clk 0:02:32.8]} 13... Rb8 {[%clk 0:02:32.1]} 14. h4 {[%clk
0:02:32]} 14... b5 {[%clk 0:02:18.9]} 15. axb5 {[%clk 0:02:31.2]} 15... axb5
{[%clk 0:02:19.8]} 16. Nf4 {[%clk 0:02:31.6]} 16... Nf5 {[%clk 0:02:11.3]} 17.
g3 {[%clk 0:02:29]} 17... b4 {[%clk 0:02:08.6]} 18. Bd3 {[%clk 0:02:10.5]} 18...
bxc3 {[%clk 0:02:06.9]} 19. bxc3 {[%clk 0:02:09.9]} 19... Ne7 {[%clk 0:01:51.8]}
20. Ba3 {[%clk 0:01:58.1]} 20... c4 {[%clk 0:01:33.3]} 21. Bc2 {[%clk
0:01:55.8]} 21... Re8 {[%clk 0:01:33.4]} 22. Bd6 {[%clk 0:01:53.9]} 22... Rb7
{[%clk 0:01:24.6]} 23. Ba4 {[%clk 0:01:33.1]} 23... Nf5 {[%clk 0:01:21.8]} 24.
Bb4 {[%clk 0:01:25]} 24... Ra7 {[%clk 0:01:17.3]} 25. Bc2 {[%clk 0:01:24.2]}
25... Rxa1 {[%clk 0:01:17.1]} 26. Qxa1 {[%clk 0:01:25.1]} 26... Bf8 {[%clk
0:01:08.3]} 27. Bxf8 {[%clk 0:01:22.5]} 27... Nxf8 {[%clk 0:01:08.1]} 28. Qa7
{[%clk 0:01:19.3]} 28... Re7 {[%clk 0:01:02]} 29. Qa8 {[%clk 0:01:14.4]} 29...
Ng7 {[%clk 0:00:48.6]} 30. Rb1 {[%clk 0:01:09.1]} 30... Rc7 {[%clk 0:00:41]} 31.
Kg2 {[%clk 0:00:35.8]} 31... Qe7 {[%clk 0:00:40.9]} 32. Rb8 {[%clk 0:00:32.9]}
32... Bb7 {[%clk 0:00:35.7]} 33. Qa5 {[%clk 0:00:25.4]} 33... Rc8 {[%clk
0:00:31.9]} 34. Rxc8 {[%clk 0:00:24.2]} 34... Bxc8 {[%clk 0:00:32.8]} 35. Qa8
{[%clk 0:00:23.7]} 35... Qb7 {[%clk 0:00:31.8]} 36. Qxb7 {[%clk 0:00:23.2]}
36... Bxb7 {[%clk 0:00:32.3]} 37. Ba4 {[%clk 0:00:23.7]} 37... Nf5 {[%clk
0:00:31.8]} 38. Kf1 {[%clk 0:00:22.9]} 38... Ne7 {[%clk 0:00:32.2]} 39. Ke1
{[%clk 0:00:22.9]} 39... Bc6 {[%clk 0:00:32.7]} 40. Bc2 {[%clk 0:00:20.8]} 40...
Nd7 {[%clk 0:00:31.2]} 41. Kd2 {[%clk 0:00:21.1]} 41... Nb6 {[%clk 0:00:31.6]}
42. Ne2 {[%clk 0:00:20.2]} 42... Kf8 {[%clk 0:00:30.8]} 43. Nh2 {[%clk
0:00:20.3]} 43... Ba4 {[%clk 0:00:29.1]} 44. Bb1 {[%clk 0:00:19.5]} 44... Bb3
{[%clk 0:00:27]} 45. Ng4 {[%clk 0:00:19.1]} 45... Kg7 {[%clk 0:00:27]} 46. Nf6
{[%clk 0:00:18.9]} 46... h5 {[%clk 0:00:26.4]} 47. Ne8+ {[%clk 0:00:19]} 47...
Kf8 {[%clk 0:00:26.2]} 48. Nd6 {[%clk 0:00:19.6]} 48... Nec8 {[%clk 0:00:23.2]}
49. Nxc8 {[%clk 0:00:16.2]} 49... Nxc8 {[%clk 0:00:23.5]} 50. Nf4 {[%clk
0:00:17.1]} 50... Nb6 {[%clk 0:00:23]} 51. Nh3 {[%clk 0:00:17.3]} 51... Ba4
{[%clk 0:00:23.1]} 52. Ng5 {[%clk 0:00:16.7]} 52... Ke7 {[%clk 0:00:23.7]} 53.
Nh3 {[%clk 0:00:16.6]} 53... Nd7 {[%clk 0:00:23.5]} 54. Ng5 {[%clk 0:00:16.2]}
54... Nf8 {[%clk 0:00:23.3]} 55. Nh3 {[%clk 0:00:13.4]} 55... Nh7 {[%clk
0:00:23.1]} 56. Nf4 {[%clk 0:00:13.6]} 56... Kf8 {[%clk 0:00:20.8]} 57. Nh3
{[%clk 0:00:12.8]} 57... Kg7 {[%clk 0:00:20.8]} 58. Nf4 {[%clk 0:00:12.1]} 58...
Nf8 {[%clk 0:00:20]} 59. Ne2 {[%clk 0:00:12]} 59... Bb3 {[%clk 0:00:19.8]} 60.
Nf4 {[%clk 0:00:12.1]} 60... Ba4 {[%clk 0:00:20.2]} 61. Ne2 {[%clk 0:00:12.4]}
61... Nd7 {[%clk 0:00:20.7]} 62. Nf4 {[%clk 0:00:12.8]} 62... Nb6 {[%clk
0:00:21.3]} 63. Ne2 {[%clk 0:00:13]} 63... Bc6 {[%clk 0:00:21.7]} 64. Nf4 {[%clk
0:00:13.3]} 64... Bd7 {[%clk 0:00:21.6]} 65. Ne2 {[%clk 0:00:13.3]} 65... Be8
{[%clk 0:00:21.8]} 66. Nf4 {[%clk 0:00:13.6]} 66... Kf8 {[%clk 0:00:22.5]} 67.
Ne2 {[%clk 0:00:13.9]} 67... Ke7 {[%clk 0:00:23.2]} 68. Nf4 {[%clk 0:00:14.6]}
68... Nd7 {[%clk 0:00:23.6]} 69. Nh3 {[%clk 0:00:15.1]} 69... Nb8 {[%clk
0:00:23.9]} 70. Ng5 {[%clk 0:00:15.4]} 70... Nc6 {[%clk 0:00:24.4]} 71. Nf3
{[%clk 0:00:15.9]} 71... Na5 {[%clk 0:00:24.9]} 72. Bc2 {[%clk 0:00:13.9]} 72...
Bd7 {[%clk 0:00:25]} 73. Ng5 {[%clk 0:00:14.1]} 73... Kf8 {[%clk 0:00:25]} 74.
Nh3 {[%clk 0:00:14.7]} 74... Kg7 {[%clk 0:00:24.5]} 75. Ng5 {[%clk 0:00:15]}
75... Bc6 {[%clk 0:00:23.5]} 76. Nh3 {[%clk 0:00:15.1]} 76... Bb5 {[%clk
0:00:23.8]} 77. Nf4 {[%clk 0:00:15]} 77... Be8 {[%clk 0:00:23]} 78. Nh3 {[%clk
0:00:13]} 78... Nb7 {[%clk 0:00:23.4]} 79. Ng5 {[%clk 0:00:13.1]} 79... Kf8
{[%clk 0:00:23.6]} 80. Nh3 {[%clk 0:00:13.3]} 80... Nd8 {[%clk 0:00:24]} 81. Ng5
{[%clk 0:00:13.4]} 81... Nc6 {[%clk 0:00:24.5]} 82. Nf3 {[%clk 0:00:14]} 82...
Ne7 {[%clk 0:00:24.9]} 83. Ng5 {[%clk 0:00:14.2]} 83... Kg7 {[%clk 0:00:25.2]}
84. Nh3 {[%clk 0:00:13.9]} 84... Bd7 {[%clk 0:00:25.7]} 85. Nf4 {[%clk
0:00:13.6]} 85... Nc8 {[%clk 0:00:26]} 86. Ng2 {[%clk 0:00:13.5]} 86... Nb6
{[%clk 0:00:26.5]} 87. Ne3 {[%clk 0:00:13.9]} 87... Be8 {[%clk 0:00:26.9]} 88.
Ng2 {[%clk 0:00:13.8]} 88... Kf8 {[%clk 0:00:27.4]} 89. Ne3 {[%clk 0:00:14.3]}
89... Ke7 {[%clk 0:00:27.9]} 90. Ng2 {[%clk 0:00:14.9]} 90... Nd7 {[%clk
0:00:26.5]} 91. Ne3 {[%clk 0:00:15.3]} 91... f6 {[%clk 0:00:26]} 92. exf6+
{[%clk 0:00:14.4]} 92... Kxf6 {[%clk 0:00:26.5]} 93. Ng2 {[%clk 0:00:14.2]}
93... Bf7 {[%clk 0:00:24.9]} 94. Nf4 {[%clk 0:00:14.2]} 94... e5 {[%clk
0:00:25.4]} 95. dxe5+ {[%clk 0:00:13.8]} 95... Nxe5 {[%clk 0:00:26]} 96. Bd1
{[%clk 0:00:12.6]} 96... Nc6 {[%clk 0:00:17.2]} 97. Ke3 {[%clk 0:00:11.8]} 97...
Ke5 {[%clk 0:00:16.8]} 98. Ne2 {[%clk 0:00:10.5]} 98... Ne7 {[%clk 0:00:15.2]}
99. f4+ {[%clk 0:00:10.3]} 99... Kd6 {[%clk 0:00:15]} 100. Nd4 {[%clk
0:00:11.2]} 100... Be8 {[%clk 0:00:11.3]} 101. Bc2 {[%clk 0:00:11]} 101... Nc8
{[%clk 0:00:11.3]} 102. f5 {[%clk 0:00:09.9]} 102... Ne7 {[%clk 0:00:07.4]} 103.
f6 {[%clk 0:00:05.5]} 103... Nc8 {[%clk 0:00:07.4]} 104. Kf4 {[%clk 0:00:05.6]}
104... Bf7 {[%clk 0:00:06.4]} 105. Kg5 {[%clk 0:00:05.8]} 105... Ke5 {[%clk
0:00:06.9]} 106. Bxg6 {[%clk 0:00:04.9]} 106... Bxg6 {[%clk 0:00:06.5]} 107.
Kxg6 {[%clk 0:00:05.2]} 107... Nd6 {[%clk 0:00:07.4]} 108. Kg7 {[%clk
0:00:04.2]} 108... Ke4 {[%clk 0:00:07.1]} 109. f7 {[%clk 0:00:03.3]} 109... Nxf7
{[%clk 0:00:07.2]} 110. Kxf7 {[%clk 0:00:04.2]} 110... Kd3 {[%clk 0:00:07.3]}
111. Ke6 {[%clk 0:00:04.4]} 111... Kxc3 {[%clk 0:00:07.6]} 112. Kxd5 {[%clk
0:00:04.7]} 112... Kd3 {[%clk 0:00:08.4]} 113. Ke5 {[%clk 0:00:04.9]} 113... c3
{[%clk 0:00:08.6]} 0-1

[Event "Early-Titled-Tuesday-Blitz-March-19-2024"]
[Site "Chess.com"]
[Date "2024.03.19"]
[Round "2"]
[White "Gabix_94"]
[Black "mertfelin"]
[Result "1-0"]
[WhiteElo "2775"]
[BlackElo "2375"]
[TimeControl "180+1"]
[EndTime "8:12:35 PDT"]
[Termination "Gabix_94 won by resignation"]

1. d4 {[%clk 0:03:00.9]} 1... d5 {[%clk 0:02:58.5]} 2. Nc3 {[%clk 0:03:01.4]}
2... Nf6 {[%clk 0:02:58.7]} 3. Bf4 {[%clk 0:03:01.8]} 3... e6 {[%clk 0:02:59.3]}
4. Nb5 {[%clk 0:03:00.4]} 4... Na6 {[%clk 0:02:59.5]} 5. e3 {[%clk 0:02:59.7]}
5... Be7 {[%clk 0:02:59.9]} 6. h4 {[%clk 0:02:59.3]} 6... O-O {[%clk 0:03:00]}
7. Nf3 {[%clk 0:02:59.9]} 7... c6 {[%clk 0:03:00.7]} 8. Nc3 {[%clk 0:02:59.2]}
8... c5 {[%clk 0:03:01.4]} 9. h5 {[%clk 0:02:56.2]} 9... h6 {[%clk 0:03:01.4]}
10. Ne5 {[%clk 0:02:54]} 10... Ne4 {[%clk 0:02:57.8]} 11. Nxe4 {[%clk
0:02:50.2]} 11... dxe4 {[%clk 0:02:58.3]} 12. c3 {[%clk 0:02:51.1]} 12... b6
{[%clk 0:02:55.4]} 13. Nc6 {[%clk 0:02:47.6]} 13... Qe8 {[%clk 0:02:53.7]} 14.
Nxe7+ {[%clk 0:02:38.9]} 14... Qxe7 {[%clk 0:02:54]} 15. dxc5 {[%clk 0:02:39.6]}
15... Nxc5 {[%clk 0:02:51.7]} 16. Bd6 {[%clk 0:02:38.5]} 16... Qd8 {[%clk
0:02:52.2]} 17. Bxf8 {[%clk 0:02:36.9]} 17... Qxf8 {[%clk 0:02:52.9]} 18. b4
{[%clk 0:02:32.7]} 18... Nd7 {[%clk 0:02:49.1]} 19. Qd4 {[%clk 0:02:29.5]} 19...
Bb7 {[%clk 0:02:44.1]} 20. Qxd7 {[%clk 0:02:27]} 1-0

[Event "Early-Titled-Tuesday-Blitz-March-19-2024"]
[Site "Chess.com"]
[Date "2024.03.19"]
[Round "2"]
[White "bescmelasti"]
[Black "RichardShtivelband"]
[Result "1-0"]
[WhiteElo "2657"]
[BlackElo "2414"]
[TimeControl "180+1"]
[EndTime "8:13:10 PDT"]
[Termination "bescmelasti won by resignation"]

1. e4 {[%clk 0:03:00.9]} 1... e5 {[%clk 0:02:59.2]} 2. Nf3 {[%clk 0:03:00.3]}
2... Nc6 {[%clk 0:02:59]} 3. Bc4 {[%clk 0:03:00.6]} 3... Bc5 {[%clk 0:02:58.1]}
4. d3 {[%clk 0:03:00.6]} 4... d6 {[%clk 0:02:57.7]} 5. c3 {[%clk 0:03:00.5]}
5... a6 {[%clk 0:02:56.8]} 6. a4 {[%clk 0:03:00.5]} 6... Ba7 {[%clk 0:02:54.4]}
7. O-O {[%clk 0:03:01.1]} 7... f5 {[%clk 0:02:48.3]} 8. Ng5 {[%clk 0:02:52.7]}
8... Qf6 {[%clk 0:02:22.4]} 9. Nf7 {[%clk 0:02:47.1]} 9... fxe4 {[%clk
0:02:09.2]} 10. Nxh8 {[%clk 0:02:43.3]} 10... Nge7 {[%clk 0:01:41.5]} 11. Qh5+
{[%clk 0:02:43]} 1-0

[Event "Early-Titled-Tuesday-Blitz-March-19-2024"]
[Site "Chess.com"]
[Date "2024.03.19"]
[Round "2"]
[White "Carlos-Godoy"]
[Black "Quattroporte300"]
[Result "0-1"]
[WhiteElo "2085"]
[BlackElo "2475"]
[TimeControl "180+1"]
[EndTime "8:13:12 PDT"]
[Termination "Quattroporte300 won by resignation"]

1. d4 {[%clk 0:03:00.9]} 1... g6 {[%clk 0:02:59.1]} 2. Nf3 {[%clk 0:02:58.4]}
2... Nf6 {[%clk 0:02:59.1]} 3. Bg5 {[%clk 0:02:53.9]} 3... Bg7 {[%clk
0:02:59.4]} 4. Nbd2 {[%clk 0:02:54.2]} 4... O-O {[%clk 0:02:57.9]} 5. c3 {[%clk
0:02:53.9]} 5... d5 {[%clk 0:02:56.7]} 6. e3 {[%clk 0:02:53.8]} 6... h6 {[%clk
0:02:56.4]} 7. Bh4 {[%clk 0:02:53]} 7... Bf5 {[%clk 0:02:56.2]} 8. Be2 {[%clk
0:02:50.7]} 8... Nbd7 {[%clk 0:02:55.8]} 9. O-O {[%clk 0:02:49.1]} 9... c5
{[%clk 0:02:55.7]} 10. Ne5 {[%clk 0:02:48.8]} 10... Qb6 {[%clk 0:02:42.3]} 11.
Nxd7 {[%clk 0:02:42.5]} 11... Nxd7 {[%clk 0:02:41.7]} 12. Bxe7 {[%clk
0:02:40.8]} 12... Rfe8 {[%clk 0:02:41.7]} 13. Bxc5 {[%clk 0:02:40.3]} 13... Nxc5
{[%clk 0:02:41.8]} 14. dxc5 {[%clk 0:02:40.6]} 14... Qxb2 {[%clk 0:02:32.5]} 15.
Nb3 {[%clk 0:02:41]} 15... Bxc3 {[%clk 0:02:18.3]} 16. Qxd5 {[%clk 0:02:31.1]}
16... Qxe2 {[%clk 0:02:14.9]} 17. Rfd1 {[%clk 0:02:22.8]} 17... Bxa1 {[%clk
0:02:10]} 0-1